lending/lending_fUSD_20240621
["ID","MTS","AMOUNT","RATE_DAILY","PERIOD"]
[330052126,1718973054448,-1952.1,0.00021917,4]
[330052127,1718973054456,-504.671863,0.00021917,4]
[330052128,1718973054465,-500.0,0.00021917,4]
[330052129,1718973054474,-500.0,0.00021917,4]
[330052130,1718973054483,-500.0,0.00021917,4]
[330052131,1718973054493,-510.64519113,0.00021917,4]
[330052132,1718973054502,-500.0,0.00021917,4]
[330052133,1718973054511,-500.0,0.00021917,4]
[330052134,1718973054521,-348.79970762,0.00021917,4]
[330052135,1718973054530,-2193.03,0.00021917,4]
[330052136,1718973054539,-706.78,0.00021917,4]
[330052137,1718973054548,-1848.21,0.00021917,4]
[330052138,1718973054558,-500.0,0.00021917,4]
[330052139,1718973054567,-624.16,0.00021917,4]
[330052140,1718973054577,-500.0,0.00021917,4]
[330052141,1718973054586,-591.01,0.00021917,4]
[330052142,1718973054596,-558.54559787,0.00021917,4]
[330052143,1718973054605,-500.0,0.00021917,4]
[330052144,1718973054619,-562.5,0.00021917,4]
[330052145,1718973054629,-500.0,0.00021917,4]
[330052146,1718973054639,-500.0,0.00021917,4]
[330052147,1718973054648,-500.0,0.00021917,4]
[330052148,1718973054658,-500.0,0.00021917,4]
[330052149,1718973054667,-500.0,0.00021917,4]
[330052150,1718973054677,-500.0,0.00021917,4]
[330052151,1718973054686,-500.0,0.00021917,4]
[330052152,1718973054695,-500.0,0.00021917,4]
[330052153,1718973054704,-500.0,0.00021917,4]
[330052154,1718973054714,-2947.73,0.00021917,4]
[330052155,1718973054723,-531.69,0.00021917,4]
[330052156,1718973054732,-205.095362,0.00021917,2]
[330052157,1718973054741,-205.095362,0.00021917,2]
[330052158,1718973054750,-1350.34,0.00021917,4]
[330052159,1718973054759,-205.095362,0.00021917,2]
[330052160,1718973054769,-500.0,0.00021917,4]
[330052161,1718973054778,-205.095362,0.00021917,2]
[330052162,1718973054786,-205.095362,0.00021917,2]
[330052163,1718973054795,-337.82975388,0.00021917,4]
[330052164,1718973054805,-205.095362,0.00021917,2]
[330052165,1718973054814,-205.095362,0.00021917,2]
[330052166,1718973054823,-2331.11,0.00021917,4]
[330052167,1718973054832,-205.095362,0.00021917,2]
[330052168,1718973054841,-500.0,0.00021917,4]
[330052169,1718973054850,-205.095362,0.00021917,2]
[330052170,1718973054859,-205.095362,0.00021917,2]
[330052171,1718973054869,-1496.38,0.00021917,4]
[330052172,1718973054879,-205.095362,0.00021917,2]
[330052173,1718973054888,-500.0,0.00021917,4]
[330052174,1718973054897,-205.095362,0.00021917,2]
[330052175,1718973054906,-205.095362,0.00021917,2]
[330052176,1718973054917,-1623.88,0.00021917,4]
[330052177,1718973054927,-500.0,0.00021917,4]
[330052178,1718973054937,-205.095362,0.00021917,2]
[330052179,1718973054946,-205.095362,0.00021917,2]
[330052180,1718973054955,-205.095362,0.00021917,2]
[330052181,1718973054965,-500.0,0.00021917,4]
[330052182,1718973054974,-500.0,0.00021917,4]
[330052183,1718973054984,-1163.89,0.00021917,4]
[330052184,1718973054993,-205.095362,0.00021917,2]
[330052185,1718973055003,-205.095362,0.00021917,2]
[330052186,1718973055012,-500.0,0.00021917,4]
[330052187,1718973055022,-667.41,0.00021917,4]
[330052188,1718973055032,-205.095362,0.00021917,2]
[330052189,1718973055041,-1404.16,0.00021917,4]
[330052190,1718973055050,-628.16,0.00021917,4]
[330052191,1718973055060,-205.095358,0.00021917,2]
[330052192,1718973055069,-805.07,0.00021917,4]
[330052193,1718973055079,-500.0,0.00021917,4]
[330052194,1718973055088,-765.74,0.00021917,4]
[330052195,1718973055097,-500.93485703,0.00021917,4]
[330052196,1718973055107,-500.0,0.00021917,4]
[330052197,1718973055116,-500.0,0.00021917,4]
[330052198,1718973055126,-1917.4,0.00021917,4]
[330052199,1718973055135,-500.0,0.00021917,4]
[330052200,1718973055145,-500.0,0.00021917,4]
[330052201,1718973055154,-500.0,0.00021917,4]
[330052202,1718973055163,-214.442648,0.00021917,2]
[330052203,1718973055173,-214.442648,0.00021917,2]
[330052204,1718973055183,-151.0,0.00021917,2]
[330052205,1718973055192,-214.442648,0.00021917,2]
[330052206,1718973055202,-151.0,0.00021917,2]
[330052207,1718973055211,-214.442648,0.00021917,2]
[330052208,1718973055221,-500.0,0.00021917,4]
[330052209,1718973055230,-500.0,0.00021917,4]
[330052210,1718973055239,-151.0,0.00021917,2]
[330052211,1718973055249,-500.0,0.00021917,4]
[330052212,1718973055258,-214.442648,0.00021917,2]
[330052213,1718973055268,-151.0,0.00021917,2]
[330052214,1718973055278,-502.29411269,0.00021917,4]
[330052215,1718973055287,-214.442648,0.00021917,2]
[330052216,1718973055296,-214.442648,0.00021917,2]
[330052217,1718973055306,-214.442648,0.00021917,2]
[330052218,1718973055316,-151.0,0.00021917,2]
[330052219,1718973055325,-500.0,0.00021917,4]
[330052220,1718973055335,-8457.45,0.00021917,4]
[330052221,1718973055345,-500.0,0.00021917,4]
[330052222,1718973055356,-151.0,0.00021917,2]
[330052223,1718973055366,-500.0,0.00021917,4]
[330052224,1718973055377,-1736.26,0.00021917,4]
[330052225,1718973055387,-500.0,0.00021917,4]
[330052226,1718973055397,-151.0,0.00021917,2]
[330052227,1718973055407,-214.442648,0.00021917,2]
[330052228,1718973055417,-151.0,0.00021917,2]
[330052229,1718973055427,-214.442648,0.00021917,2]
[330052230,1718973055439,-151.0,0.00021917,2]
[330052231,1718973055449,-214.442648,0.00021917,2]
[330052232,1718973055459,-500.0,0.00021917,4]
[330052233,1718973055469,-214.442648,0.00021917,2]
[330052234,1718973055479,-555.47414235,0.00021917,4]
[330052235,1718973055488,-214.442648,0.00021917,2]
[330052236,1718973055498,-151.0,0.00021917,2]
[330052237,1718973055507,-151.0,0.00021917,2]
[330052238,1718973055517,-214.442648,0.00021917,2]
[330052239,1718973055526,-500.0,0.00021917,4]
[330052240,1718973055536,-151.0,0.00021917,2]
[330052241,1718973055545,-214.442648,0.00021917,2]
[330052242,1718973055555,-151.0,0.00021917,2]
[330052243,1718973055565,-500.0,0.00021917,4]
[330052244,1718973055574,-214.442648,0.00021917,2]
[330052245,1718973055583,-151.0,0.00021917,2]
[330052246,1718973055593,-214.442648,0.00021917,2]
[330052247,1718973055602,-151.0,0.00021917,2]
[330052248,1718973055612,-500.0,0.00021917,4]
[330052249,1718973055621,-214.442648,0.00021917,2]
[330052250,1718973055632,-214.442648,0.00021917,2]
[330052251,1718973055641,-1673.18,0.00021917,4]
[330052252,1718973055651,-500.0,0.00021917,4]
[330052253,1718973055660,-214.442641,0.00021917,2]
[330052254,1718973055670,-638.41,0.00021917,4]
[330052255,1718973055679,-1599.12,0.00021917,4]
[330052256,1718973055689,-500.0,0.00021917,4]
[330052257,1718973055699,-500.0,0.00021917,4]
[330052258,1718973055708,-945.51,0.00021917,4]
[330052259,1718973055718,-622.67462263,0.00021917,4]
[330052260,1718973055728,-151.0,0.00021917,2]
[330052261,1718973055738,-500.0,0.00021917,4]
[330052262,1718973055748,-151.0,0.00021917,2]
[330052263,1718973055758,-500.0,0.00021917,4]
[330052264,1718973055767,-151.0,0.00021917,2]
[330052265,1718973055776,-151.0,0.00021917,2]
[330052266,1718973055786,-151.0,0.00021917,2]
[330052267,1718973055795,-151.0,0.00021917,2]
[330052268,1718973055805,-179.272579,0.00021917,2]
[330052269,1718973055814,-2988.12,0.00021917,4]
[330052270,1718973055824,-500.0,0.00021917,4]
[330052271,1718973055833,-500.0,0.00021917,32]
[330052272,1718973055845,-500.0,0.00021917,4]
[330052273,1718973055855,-917.73,0.00021917,4]
[330052274,1718973055865,-500.0,0.00021917,4]
[330052275,1718973055875,-1026.54,0.00021917,4]
[330052276,1718973055885,-1827.66,0.00021917,4]
[330052277,1718973055894,-530.22,0.00021917,4]
[330052278,1718973055903,-2155.52,0.00021917,4]
[330052279,1718973055913,-500.0,0.00021917,4]
[330052280,1718973055923,-2002.2,0.00021917,4]
[330052281,1718973055932,-500.0,0.00021917,4]
[330052282,1718973055942,-500.0,0.00021917,4]
[330052283,1718973055952,-2722.49,0.00021917,4]
[330052284,1718973055961,-1420.99,0.00021917,4]
[330052285,1718973055971,-500.0,0.00021917,4]
[330052286,1718973055981,-267.324005,0.00021917,2]
[330052287,1718973055990,-500.0,0.00021917,4]
[330052288,1718973056000,-267.324005,0.00021917,2]
[330052289,1718973056010,-500.0,0.00021917,4]
[330052290,1718973056020,-267.324005,0.00021917,2]
[330052291,1718973056030,-267.324005,0.00021917,2]
[330052292,1718973056040,-267.324005,0.00021917,2]
[330052293,1718973056050,-267.324005,0.00021917,2]
[330052294,1718973056060,-267.324005,0.00021917,2]
[330052295,1718973056071,-1943.21423,0.00021917,2]
[330052296,1718973056080,-267.324005,0.00021917,2]
[330052297,1718973056090,-500.0,0.00021917,4]
[330052298,1718973056100,-1391.4,0.00021917,4]
[330052299,1718973056110,-267.324005,0.00021917,2]
[330052300,1718973056119,-500.0,0.00021917,4]
[330052301,1718973056131,-1489.13,0.00021917,4]
[330052302,1718973056141,-267.324005,0.00021917,2]
[330052303,1718973056151,-595.31247363,0.00021917,4]
[330052304,1718973056162,-267.324005,0.00021917,2]
[330052305,1718973056172,-267.324005,0.00021917,2]
[330052306,1718973056182,-267.324005,0.00021917,2]
[330052307,1718973056191,-267.324005,0.00021917,2]
[330052308,1718973056201,-500.0,0.00021917,4]
[330052309,1718973056211,-1702.47,0.00021917,4]
[330052310,1718973056221,-267.324005,0.00021917,2]
[330052311,1718973056231,-558.41787181,0.00021917,4]
[330052312,1718973056240,-267.324005,0.00021917,2]
[330052313,1718973056250,-510.91941095,0.00021917,4]
[330052314,1718973056261,-1134.68,0.00021917,4]
[330052315,1718973056271,-267.324005,0.00021917,2]
[330052316,1718973056281,-500.0,0.00021917,4]
[330052317,1718973056291,-787.22,0.00021917,4]
[330052318,1718973056300,-267.324005,0.00021917,2]
[330052319,1718973056310,-500.0,0.00021917,4]
[330052320,1718973056320,-267.324005,0.00021917,2]
[330052321,1718973056329,-669.57,0.00021917,4]
[330052322,1718973056339,-267.324006,0.00021917,2]
[330052323,1718973056351,-500.0,0.00021917,4]
[330052324,1718973056364,-500.0,0.00021917,4]
[330052325,1718973056374,-500.0,0.00021917,4]
[330052326,1718973056388,-500.0,0.00021917,4]
[330052327,1718973056398,-500.0,0.00021917,4]
[330052328,1718973056410,-500.0,0.00021917,4]
[330052329,1718973056420,-500.0,0.00021917,4]
[330052330,1718973056431,-500.0,0.00021917,4]
[330052331,1718973056441,-236.64963167,0.00021917,2]
[330052332,1718973056451,-500.0,0.00021917,4]
[330052333,1718973056460,-1449.14,0.00021917,4]
[330052334,1718973056470,-502.4029408,0.00021917,4]
[330052335,1718973056480,-708.36,0.00021917,4]
[330052336,1718973056490,-16282.7,0.00021917,4]
[330052337,1718973056499,-500.36205415,0.00021917,4]
[330052338,1718973056509,-500.0,0.00021917,4]
[330052339,1718973056519,-573.2024051,0.00021917,4]
[330052340,1718973056529,-1116.91,0.00021917,4]
[330052341,1718973056539,-500.0,0.00021917,4]
[330052342,1718973056549,-500.0,0.00021917,4]
[330052343,1718973056559,-1125.69,0.00021917,4]
[330052344,1718973056569,-604.75,0.00021917,4]
[330052345,1718973056579,-500.0,0.00021917,4]
[330052346,1718973056589,-500.0,0.00021917,4]
[330052347,1718973056599,-500.0,0.00021917,4]
[330052348,1718973056609,-1462.93,0.00021917,4]
[330052349,1718973056619,-860.75,0.00021917,4]
[330052350,1718973056631,-1667.43,0.00021917,4]
[330052351,1718973056642,-500.0,0.00021917,4]
[330052352,1718973056652,-662.62,0.00021917,4]
[330052353,1718973056662,-500.0,0.00021917,4]
[330052354,1718973056673,-500.0,0.00021917,4]
[330052355,1718973056683,-5139.2,0.00021917,4]
[330052356,1718973056693,-500.0,0.00021917,4]
[330052357,1718973056703,-1147.2,0.00021917,4]
[330052358,1718973056712,-705.64,0.00021917,4]
[330052359,1718973056722,-500.0,0.00021917,4]
[330052360,1718973056732,-288.41463324,0.00021917,4]
[330052361,1718973056741,-336.948142,0.00021917,2]
[330052362,1718973056751,-336.948142,0.00021917,2]
[330052363,1718973056760,-502.16,0.00021917,4]
[330052364,1718973056771,-1270.64,0.00021917,4]
[330052365,1718973056780,-500.0,0.00021917,4]
[330052366,1718973056790,-500.0,0.00021917,4]
[330052367,1718973056800,-500.0,0.00021917,4]
[330052368,1718973056809,-500.0,0.00021917,4]
[330052369,1718973056819,-958.73,0.00021917,4]
[330052370,1718973056829,-336.948142,0.00021917,2]
[330052371,1718973056838,-500.0,0.00021917,4]
[330052372,1718973056848,-500.0,0.00021917,4]
[330052373,1718973056858,-500.0,0.00021917,4]
[330052374,1718973056867,-336.948142,0.00021917,2]
[330052375,1718973056878,-1047.69,0.00021917,4]
[330052376,1718973056890,-618.47,0.00021917,4]
[330052377,1718973056900,-500.0,0.00021917,4]
[330052378,1718973056909,-336.948142,0.00021917,2]
[330052379,1718973056918,-500.0,0.00021917,4]
[330052380,1718973056928,-336.948142,0.00021917,2]
[330052381,1718973056937,-336.948142,0.00021917,2]
[330052382,1718973056946,-336.948142,0.00021917,2]
[330052383,1718973056955,-500.0,0.00021917,4]
[330052384,1718973056965,-1764.94,0.00021917,4]
[330052385,1718973056975,-336.948142,0.00021917,2]
[330052386,1718973056985,-336.948142,0.00021917,2]
[330052387,1718973056994,-336.948142,0.00021917,2]
[330052388,1718973057005,-336.948142,0.00021917,2]
[330052389,1718973057014,-1043.04,0.00021917,4]
[330052390,1718973057024,-336.948142,0.00021917,2]
[330052391,1718973057034,-500.0,0.00021917,4]
[330052392,1718973057044,-500.0,0.00021917,4]
[330052393,1718973057053,-336.948142,0.00021917,2]
[330052394,1718973057063,-336.948142,0.00021917,2]
[330052395,1718973057073,-336.948142,0.00021917,2]
[330052396,1718973057083,-500.0,0.00021917,4]
[330052397,1718973057092,-543.07,0.00021917,4]
[330052398,1718973057103,-58081.73,0.00021917,4]
[330052399,1718973057113,-336.948142,0.00021917,2]
[330052400,1718973057124,-2774.27,0.00021917,4]
[330052401,1718973057135,-7892.24,0.00021917,4]
[330052402,1718973057144,-2075.77,0.00021917,4]
[330052403,1718973057154,-336.948142,0.00021917,2]
[330052404,1718973057164,-816.9,0.00021917,4]
[330052405,1718973057175,-336.948142,0.00021917,2]
[330052406,1718973057185,-336.948144,0.00021917,2]
[330052407,1718973057196,-500.0,0.00021917,4]
[330052408,1718973057207,-500.0,0.00021917,4]
[330052409,1718973057217,-926.77,0.00021917,4]
[330052410,1718973057227,-500.82956885,0.00021917,4]
[330052411,1718973057237,-500.0,0.00021917,4]
[330052412,1718973057247,-2799.73,0.00021917,4]
[330052413,1718973057256,-500.0,0.00021917,4]
[330052414,1718973057266,-500.0,0.00021917,4]
[330052415,1718973057276,-521.56,0.00021917,4]
[330052416,1718973057286,-584.17,0.00021917,4]
[330052417,1718973057296,-500.0,0.00021917,4]
[330052418,1718973057307,-500.0,0.00021917,4]
[330052419,1718973057318,-920.17,0.00021917,4]
[330052420,1718973057328,-500.0,0.00021917,4]
[330052421,1718973057338,-500.96888412,0.00021917,4]
[330052422,1718973057348,-2930.52,0.00021917,4]
[330052423,1718973057363,-500.0,0.00021917,4]
[330052424,1718973057373,-1560.84,0.00021917,4]
[330052425,1718973057386,-511.58706894,0.00021917,4]
[330052426,1718973057397,-500.0,0.00021917,4]
[330052427,1718973057406,-2818.4,0.00021917,4]
[330052428,1718973057415,-2000.0,0.00021917,4]
[330052429,1718973057425,-500.0,0.00021917,4]
[330052430,1718973057437,-511.56,0.00021917,4]
[330052431,1718973057447,-500.0,0.00021917,4]
[330052432,1718973057457,-960.31,0.00021917,4]
[330052433,1718973057466,-1134.95,0.00021917,4]
[330052434,1718973057476,-1529.13,0.00021917,4]
[330052435,1718973057486,-151.0,0.00021917,2]
[330052436,1718973057496,-151.0,0.00021917,2]
[330052437,1718973057505,-157.471795,0.00021917,2]
[330052438,1718973057516,-500.0,0.00021917,4]
[330052439,1718973057527,-256.650521,0.00021917,2]
[330052440,1718973057831,-585.4,0.00021917,4]
[330052441,1718973057841,-500.0,0.00021917,4]
[330052442,1718973057851,-2714.65,0.00021917,4]
[330052443,1718973057860,-871.46,0.00021917,4]
[330052444,1718973057869,-1479.55,0.00021917,4]
[330052445,1718973057879,-1601.029434,0.00021917,2]
[330052446,1718973057889,-562.97,0.00021917,4]
[330052447,1718973057898,-1601.029434,0.00021917,2]
[330052448,1718973057907,-1601.029434,0.00021917,2]
[330052449,1718973057917,-1601.029434,0.00021917,2]
[330052450,1718973057926,-1601.029434,0.00021917,2]
[330052451,1718973057935,-738.96,0.00021917,4]
[330052452,1718973057945,-1601.029434,0.00021917,2]
[330052453,1718973057954,-500.0,0.00021917,4]
[330052454,1718973057963,-1601.029434,0.00021917,2]
[330052455,1718973057973,-1601.029434,0.00021917,2]
[330052456,1718973057983,-1601.029434,0.00021917,2]
[330052457,1718973057992,-500.0,0.00021917,4]
[330052458,1718973058001,-1601.029434,0.00021917,2]
[330052459,1718973058011,-1601.029434,0.00021917,2]
[330052460,1718973058020,-500.0,0.00021917,4]
[330052461,1718973058030,-1601.029434,0.00021917,2]
[330052462,1718973058039,-500.0,0.00021917,4]
[330052463,1718973058049,-1601.029434,0.00021917,2]
[330052464,1718973058059,-1601.029434,0.00021917,2]
[330052465,1718973058068,-1559.0,0.00021917,4]
[330052466,1718973058077,-604.2,0.00021917,4]
[330052467,1718973058087,-1601.029434,0.00021917,2]
[330052468,1718973058096,-678.48,0.00021917,4]
[330052469,1718973058105,-1601.029434,0.00021917,2]
[330052470,1718973058115,-697.86,0.00021917,4]
[330052471,1718973058124,-2873.18,0.00021917,4]
[330052472,1718973058136,-1601.029434,0.00021917,2]
[330052473,1718973058146,-151.0,0.00021917,2]
[330052474,1718973058155,-500.0,0.00021917,4]
[330052475,1718973058164,-1601.029434,0.00021917,2]
[330052476,1718973058174,-151.0,0.00021917,2]
[330052477,1718973058183,-1601.029434,0.00021917,2]
[330052478,1718973058194,-151.0,0.00021917,2]
[330052479,1718973058204,-500.0,0.00021917,4]
[330052480,1718973058213,-151.0,0.00021917,2]
[330052481,1718973058223,-3367.31,0.00021917,4]
[330052482,1718973058232,-1601.02943,0.00021917,2]
[330052483,1718973058241,-2910.63,0.00021917,4]
[330052484,1718973058251,-854.85,0.00021917,7]
[330052485,1718973058261,-500.0,0.00021917,4]
[330052486,1718973058270,-532.39,0.00021917,4]
[330052487,1718973058280,-500.0,0.00021917,4]
[330052488,1718973058291,-500.0,0.00021917,4]
[330052489,1718973058301,-751.6,0.00021917,4]
[330052490,1718973058312,-151.0,0.00021917,2]
[330052491,1718973058322,-629.02,0.00021917,4]
[330052492,1718973058331,-151.0,0.00021917,2]
[330052493,1718973058341,-151.0,0.00021917,2]
[330052494,1718973058355,-151.0,0.00021917,2]
[330052495,1718973058365,-1619.58,0.00021917,4]
[330052496,1718973058374,-151.0,0.00021917,2]
[330052497,1718973058385,-151.0,0.00021917,2]
[330052498,1718973058397,-2420.59,0.00021917,4]
[330052499,1718973058406,-151.0,0.00021917,2]
[330052500,1718973058416,-151.0,0.00021917,2]
[330052501,1718973058426,-500.0,0.00021917,4]
[330052502,1718973058435,-151.0,0.00021917,2]
[330052503,1718973058445,-549.09233102,0.00021917,4]
[330052504,1718973058455,-151.0,0.00021917,2]
[330052505,1718973058464,-500.0,0.00021917,4]
[330052506,1718973058473,-151.0,0.00021917,2]
[330052507,1718973058483,-151.0,0.00021917,2]
[330052508,1718973058492,-2089.84,0.00021917,4]
[330052509,1718973058502,-287.0,0.00021917,2]
[330052510,1718973058511,-151.0,0.00021917,2]
[330052511,1718973058521,-4010.87,0.00021917,4]
[330052512,1718973058531,-156.246534,0.00021917,2]
[330052513,1718973058540,-916.04,0.00021917,4]
[330052514,1718973058550,-2913.75,0.00021917,4]
[330052515,1718973058559,-1112.73,0.00021917,4]
[330052516,1718973058568,-500.0,0.00021917,4]
[330052517,1718973058578,-500.0,0.00021917,4]
[330052518,1718973058587,-500.0,0.00021917,4]
[330052519,1718973058597,-500.0,0.00021917,4]
[330052520,1718973058606,-500.0,0.00021917,4]
[330052521,1718973058616,-625.29,0.00021917,4]
[330052522,1718973058625,-500.0,0.00021917,4]
[330052523,1718973058637,-500.0,0.00021917,4]
[330052524,1718973058646,-500.0,0.00021917,4]
[330052525,1718973058655,-500.0,0.00021917,4]
[330052526,1718973058665,-402.55324533,0.00021917,4]
[330052527,1718973058675,-1793.24,0.00021917,4]
[330052528,1718973058684,-16994.39,0.00021917,4]
[330052529,1718973058694,-1945.66,0.00021917,4]
[330052530,1718973058703,-8296.21,0.00021917,4]
[330052531,1718973058713,-500.0,0.00021917,4]
[330052532,1718973058722,-1811.43,0.00021917,4]
[330052533,1718973058731,-806.03,0.00021917,4]
[330052534,1718973058741,-500.0,0.00021917,4]
[330052535,1718973058750,-151.0,0.00021917,2]
[330052536,1718973058759,-500.0,0.00021917,4]
[330052537,1718973058769,-168.39289,0.00021917,2]
[330052538,1718973058778,-500.0,0.00021917,4]
[330052539,1718973058787,-500.0,0.00021917,4]
[330052540,1718973058796,-3031.85,0.00021917,4]
[330052541,1718973058805,-503.51572509,0.00021917,4]
[330052542,1718973058815,-1346.46,0.00021917,4]
[330052543,1718973058824,-500.0,0.00021917,4]
[330052544,1718973058833,-1356.56,0.00021917,4]
[330052545,1718973058843,-8619.34,0.00021917,4]
[330052546,1718973058852,-982.4,0.00021917,4]
[330052547,1718973058861,-7923.23,0.00021917,4]
[330052548,1718973058871,-500.0,0.00021917,4]
[330052549,1718973058880,-500.0,0.00021917,4]
[330052550,1718973058890,-1282.01,0.00021917,4]
[330052551,1718973058899,-500.0,0.00021917,4]
[330052552,1718973058908,-500.0,0.00021917,4]
[330052553,1718973058917,-2194.68,0.00021917,4]
[330052554,1718973058927,-1065.22,0.00021917,4]
[330052555,1718973058937,-500.0,0.00021917,4]
[330052556,1718973058947,-500.0,0.00021917,4]
[330052557,1718973058957,-2605.01,0.00021917,4]
[330052558,1718973058967,-1675.38,0.00021917,4]
[330052559,1718973058976,-1675.38,0.00021917,4]
[330052560,1718973058986,-1675.38,0.00021917,4]
[330052561,1718973058995,-1086.11,0.00021917,4]
[330052562,1718973059005,-1194.85,0.00021917,4]
[330052563,1718973059015,-1675.38,0.00021917,4]
[330052564,1718973059025,-1675.38,0.00021917,4]
[330052565,1718973059035,-1675.38,0.00021917,4]
[330052566,1718973059045,-637.84,0.00021917,4]
[330052567,1718973059057,-1675.38,0.00021917,4]
[330052568,1718973059068,-500.0,0.00021917,4]
[330052569,1718973059079,-1675.38,0.00021917,4]
[330052570,1718973059089,-607.49,0.00021917,4]
[330052571,1718973059098,-2158.75,0.00021917,4]
[330052572,1718973059108,-4663.66,0.00021917,4]
[330052573,1718973059117,-500.0,0.00021917,4]
[330052574,1718973059127,-500.0,0.00021917,4]
[330052575,1718973059137,-6655.78,0.00021917,4]
[330052576,1718973059146,-500.0,0.00021917,2]
[330052577,1718973059156,-500.0,0.00021917,2]
[330052578,1718973059166,-500.0,0.00021917,4]
[330052579,1718973059176,-500.0,0.00021917,2]
[330052580,1718973059187,-500.0,0.00021917,4]
[330052581,1718973059197,-500.0,0.00021917,2]
[330052582,1718973059206,-500.0,0.00021917,2]
[330052583,1718973059216,-500.0,0.00021917,2]
[330052584,1718973059225,-3341.03,0.00021917,4]
[330052585,1718973059235,-502.61495375,0.00021917,4]
[330052586,1718973059244,-500.0,0.00021917,2]
[330052587,1718973059254,-525.27214406,0.00021917,2]
[330052588,1718973059264,-500.0,0.00021917,4]
[330052589,1718973059273,-565.88,0.00021917,4]
[330052590,1718973059283,-2666.03,0.00021917,4]
[330052591,1718973059293,-500.0,0.00021917,4]
[330052592,1718973059302,-500.0,0.00021917,4]
[330052593,1718973059312,-740.45,0.00021917,4]
[330052594,1718973059322,-1632.6,0.00021917,4]
[330052595,1718973059333,-500.0,0.00021917,4]
[330052596,1718973059342,-500.0,0.00021917,4]
[330052597,1718973059353,-500.0,0.00021917,4]
[330052598,1718973059365,-824.01,0.00021917,4]
[330052599,1718973059375,-3484.81,0.00021917,4]
[330052600,1718973059388,-5214.93,0.00021917,4]
[330052601,1718973059398,-500.0,0.00021917,4]
[330052602,1718973059409,-2247.85,0.00021917,4]
[330052603,1718973059419,-3738.85,0.00021917,4]
[330052604,1718973059428,-610.65101437,0.00021917,4]
[330052605,1718973059439,-1781.61,0.00021917,4]
[330052606,1718973059448,-562.49,0.00021917,4]
[330052607,1718973059458,-1040.27,0.00021917,4]
[330052608,1718973059467,-500.0,0.00021917,4]
[330052609,1718973059477,-500.0,0.00021917,4]
[330052610,1718973059486,-500.0,0.00021917,4]
[330052611,1718973059496,-681.24,0.00021917,4]
[330052612,1718973059506,-500.0,0.00021917,4]
[330052613,1718973059520,-500.0,0.00021917,4]
[330052614,1718973059532,-528.03,0.00021917,4]
[330052615,1718973059542,-500.0,0.00021917,4]
[330052616,1718973059552,-1331.42,0.00021917,4]
[330052617,1718973059562,-4930.88,0.00021917,4]
[330052618,1718973059571,-500.0,0.00021917,4]
[330052619,1718973059581,-1991.63,0.00021917,4]
[330052620,1718973059591,-2060.73,0.00021917,4]
[330052621,1718973059601,-22511.49,0.00021917,4]
[330052622,1718973059611,-1027.8,0.00021917,4]
[330052623,1718973059621,-455.45262968,0.00021917,4]
[330052624,1718973059634,-682.79,0.00021917,4]
[330052625,1718973059644,-500.0,0.00021917,4]